bitfinex/quotes_ETHUSD_20250605
["timestamp","ask_amount","ask_price","bid_price","bid_amount"]
[1749155047424,0.55,2480.5,2478.1,1.5761]
[1749155047765,3.9846,2480.0,2478.1,1.5761]
[1749155047921,25.0576,2479.9,2478.1,1.98235806]
[1749155048265,3.9846,2479.3,2477.2,1.5522]
[1749155048473,5.489,2478.9,2476.9,1.212508]
[1749155048759,21.049,2478.8,2476.7,1.5022]
[1749155049323,1.5277,2479.5,2476.9,10.43464205]
[1749155049562,4.235,2479.3,2476.7,1.90773188]
[1749155049764,0.21116749,2479.3,2477.1,16.0]
[1749155049962,8.719,2479.4,2477.8,10.43464205]
[1749155050167,8.719,2479.4,2477.9,16.0]
[1749155050396,12.301,2479.3,2477.6,20.58603148]
[1749155050610,12.301,2479.3,2477.6,16.55]
[1749155050904,0.00146769,2479.2,2477.9,0.55]
[1749155051276,0.00146769,2479.2,2477.8,16.0]
[1749155051461,12.261,2479.1,2477.8,16.0]
[1749155051668,0.00146769,2479.2,2477.9,0.55]
[1749155051866,0.00146769,2479.2,2477.8,20.03570306]
[1749155051867,12.248,2479.1,2478.1,16.0]
[1749155052373,12.248,2479.1,2478.0,1.526]
[1749155052690,0.00146769,2479.2,2478.0,1.526]
[1749155052866,12.219,2479.1,2478.0,1.526]
[1749155053063,12.55280422,2479.1,2477.5,1.5282]
[1749155053693,0.33380422,2479.0,2477.5,1.5282]
[1749155054000,0.33380422,2479.0,2477.9,16.0]
[1749155054219,0.33380422,2479.0,2478.4,0.55]
[1749155054367,12.179,2478.9,2477.9,16.0]
[1749155054566,0.33266924,2478.8,2477.7,0.55]
[1749155054791,0.33266924,2478.8,2477.8,1.655]
[1749155055002,0.33266924,2478.8,2477.8,16.55]
[1749155055227,0.33266924,2478.8,2478.2,0.55]
[1749155055364,12.149,2479.4,2478.9,10.98464205]
[1749155055564,1.5775,2480.6,2479.1,0.55]
[1749155056103,5.8125,2480.6,2478.1,10.43464205]
[1749155056305,1.5775,2480.6,2478.6,0.55]
[1749155056470,1.5775,2480.6,2479.4,0.55]
[1749155056670,2.21015042,2481.6,2479.4,0.55]
[1749155056671,12.114,2480.5,2480.1,16.55]
[1749155056908,8.723,2481.8,2480.7,0.55]
[1749155057210,2.94678737,2483.1,2480.7,0.55]
[1749155057211,1.12578,2482.7,2480.8,16.0]
[1749155057425,2.94678737,2483.4,2480.7,10.98464205]
[1749155057426,1.12578,2483.7,2481.4,0.55]
[1749155057571,1.12578,2483.4,2481.3,1.6409]
[1749155057904,1.12578,2483.6,2481.4,0.55]
[1749155058105,1.12578,2483.7,2481.4,16.55]
[1749155058291,1.12578,2483.6,2481.4,0.55]
[1749155058500,1.38876263,2483.5,2481.5,0.21909]
[1749155058898,13.18878,2483.4,2481.5,0.21909]
[1749155059606,13.18878,2483.4,2481.3,1.6409]
[1749155059607,2.66888,2483.3,2481.3,1.6409]
[1749155059779,5.36078,2483.0,2481.0,16.0]
[1749155059969,1.12578,2482.8,2481.0,16.0]
[1749155060170,1.12578,2482.7,2481.0,16.0]
[1749155060368,12.007,2482.6,2481.0,16.0]
[1749155060578,1.12578,2482.4,2480.2,1.5316]
[1749155060802,5.36078,2482.3,2480.2,1.5316]
[1749155061012,1.12578,2481.9,2479.7,1.5316]
[1749155061219,5.36078,2481.6,2479.7,1.5316]
[1749155061390,1.12578,2481.4,2479.7,1.5316]
[1749155061593,1.85535928,2481.6,2479.7,1.5316]
[1749155061594,1.12578,2481.6,2480.2,16.0]
[1749155061793,11.974,2481.5,2480.6,0.55]
[1749155062007,11.974,2481.5,2480.6,16.55]
[1749155062717,0.35129586,2481.4,2480.6,16.55]
[1749155062887,0.35129586,2482.2,2480.6,16.55]
[1749155063083,1.6214,2482.3,2480.6,16.55]
[1749155063395,11.933,2482.1,2480.8,16.55]
[1749155063918,0.35130489,2482.0,2480.8,16.55]
[1749155064119,8.719,2482.2,2480.8,16.55]
[1749155064120,8.719,2482.2,2480.8,16.88649734]
[1749155064317,11.896,2482.1,2480.8,0.33649734]
[1749155064784,1.5987,2482.0,2480.8,0.33649734]
[1749155065184,0.90470198,2482.1,2480.8,0.33649734]
[1749155065384,11.867,2482.0,2480.8,0.33649734]
[1749155066036,11.867,2482.0,2480.5,1.5316]
[1749155066183,1.6414,2481.9,2480.5,1.5316]
[1749155066387,1.6414,2481.9,2479.7,1.566]
[1749155066621,1.35084,2481.8,2479.8,1.53669724]
[1749155066921,1.6414,2481.9,2479.9,0.33661946]
[1749155066922,11.821,2481.7,2479.9,0.33661946]
[1749155067284,1.6414,2481.9,2480.0,16.55]
[1749155067485,1.6414,2481.9,2480.4,16.0]
[1749155067725,1.6414,2481.9,2480.2,0.55]
[1749155068026,1.6414,2481.9,2480.1,0.88659231]
[1749155068027,1.6013,2483.0,2481.7,0.55]
[1749155068220,9.84178,2483.3,2481.7,0.55]
[1749155068221,8.716,2483.3,2481.8,0.45796512]
[1749155068453,11.784,2483.2,2482.4,0.55]
[1749155068650,8.716,2483.3,2482.4,0.55]
[1749155068651,11.777,2483.1,2482.4,0.55]
[1749155068855,11.777,2483.0,2482.4,0.55]
[1749155069029,11.777,2483.0,2482.3,0.55]
[1749155069358,11.777,2483.0,2482.4,0.21244]
[1749155069571,8.716,2483.3,2482.4,0.61581672]
[1749155069782,11.747,2483.2,2482.5,0.55]
[1749155070067,11.747,2483.2,2482.7,0.55]
[1749155070269,11.747,2483.2,2482.9,0.55]
[1749155070420,11.747,2483.2,2482.5,0.55]
[1749155070621,11.747,2483.2,2482.6,4.02800874]
[1749155070817,11.747,2483.2,2482.5,16.0]
[1749155071015,11.747,2483.2,2482.6,0.55]
[1749155071240,0.091,2484.0,2482.8,16.55]
[1749155071442,0.091,2484.0,2482.8,0.55]
[1749155071657,11.685,2483.9,2483.2,0.55]
[1749155071855,11.685,2483.9,2482.9,1.6155]
[1749155072027,11.677,2483.8,2483.0,0.55]
[1749155072359,1.5073,2484.6,2483.0,0.55]
[1749155072360,11.677,2483.7,2483.0,0.55]
[1749155072561,1.5073,2484.6,2483.0,0.55]
[1749155072562,11.673,2483.6,2483.0,0.55]
[1749155073261,11.673,2483.6,2482.9,1.6155]
[1749155074125,1.6539,2483.5,2481.0,1.5231]
[1749155074359,1.6539,2483.5,2481.0,1.85957021]
[1749155074360,0.55,2483.1,2481.0,1.85957021]
[1749155074560,1.6539,2483.2,2481.0,1.85957021]
[1749155074731,0.35137184,2483.1,2481.1,14.46498263]
[1749155074918,0.35153493,2482.8,2481.2,16.0]
[1749155075122,0.35137184,2482.7,2481.4,16.0]
[1749155075351,0.35137184,2482.7,2481.3,3.04650935]
[1749155075555,0.35137184,2482.7,2481.4,1.5231]
[1749155075723,0.35060557,2483.3,2481.6,16.0]
[1749155075922,11.612,2483.2,2481.9,0.55]
[1749155076319,11.9626487,2483.2,2481.9,0.55]
[1749155076523,11.612,2483.2,2481.9,0.55]
[1749155077037,11.612,2483.2,2481.8,0.55]
[1749155077233,11.612,2483.2,2481.8,16.55]
[1749155077434,11.612,2483.2,2482.0,16.55]
[1749155078087,0.35066281,2483.3,2482.0,16.55]
[1749155078230,1.12578,2483.8,2482.3,30.46310995]
[1749155078426,11.532,2483.7,2482.6,20.02792539]
[1749155078656,11.532,2483.7,2482.7,2.00279254]
[1749155078828,11.532,2483.7,2482.8,0.55]
[1749155079026,0.35079551,2483.9,2482.8,16.55]
[1749155079225,0.1998,2484.0,2483.4,16.55]
[1749155079530,11.509,2483.9,2483.5,0.55]
[1749155079728,0.0913,2484.0,2483.5,1.655]
[1749155079925,0.0913,2484.0,2483.5,0.55]
[1749155080124,0.0913,2484.0,2483.6,16.0]
[1749155080351,0.0913,2484.0,2483.3,20.02676754]
[1749155080352,0.0913,2484.0,2483.3,16.0]
[1749155080572,0.0913,2484.0,2483.3,0.40212292]
[1749155080982,1.5159,2483.8,2483.3,0.40212292]
[1749155081180,1.5159,2483.8,2482.5,1.6002]
[1749155081902,4.59989418,2483.7,2482.5,1.6002]
[1749155082222,0.35183246,2483.6,2482.0,1.5469]
[1749155082351,0.35180698,2483.5,2482.0,1.88323465]
[1749155082547,4.248,2483.7,2482.1,0.3363211]
[1749155082743,4.59980379,2483.7,2482.1,0.3363211]
[1749155082963,4.59980379,2483.7,2482.0,1.5469]
[1749155082964,11.76680155,2483.6,2482.0,1.5469]
[1749155083166,11.76679602,2483.6,2482.0,1.5469]
[1749155083368,16.01479602,2483.6,2482.0,1.5469]
[1749155083988,4.248,2482.9,2480.6,1.5469]
[1749155084314,4.248,2482.7,2480.7,0.3365109]
[1749155084487,4.248,2482.3,2480.7,0.3365109]
[1749155084808,4.248,2482.1,2480.7,0.3365109]
[1749155084981,5.876,2481.9,2480.7,0.3365109]
[1749155085187,0.35156359,2481.8,2480.7,0.3365109]
[1749155085403,5.876,2481.9,2480.7,0.3365109]
[1749155085744,5.876,2481.9,2478.6,2.41328089]
[1749155085745,4.248,2481.5,2478.7,14.46888429]
[1749155086045,4.248,2481.1,2478.9,5.57621231]
[1749155086275,1.626,2481.2,2478.9,17.5422]
[1749155086276,15.587,2481.0,2478.9,17.5422]
[1749155086475,15.587,2481.0,2478.9,1.5422]
[1749155086750,0.35220521,2480.9,2478.9,1.5422]
[1749155087070,1.626,2481.2,2478.9,1.5422]
[1749155087071,0.35220521,2480.8,2480.0,10.43464205]
[1749155087368,11.337,2481.9,2480.2,1.6238]
[1749155087568,1.6608,2481.7,2480.1,0.42543488]
[1749155087770,2.2108,2481.5,2479.3,1.6238]
[1749155087916,1.6608,2481.2,2478.8,1.6238]
[1749155088115,2.06551004,2481.2,2478.8,1.6238]
[1749155089248,11.304,2481.1,2478.9,0.55]
[1749155089452,11.304,2481.1,2478.9,16.55]
[1749155089870,1.6608,2481.2,2478.9,16.55]
[1749155089871,11.289,2481.0,2479.0,4.03387181]
[1749155090168,1.6608,2481.2,2479.5,0.55]
[1749155090169,11.285,2480.9,2479.5,0.55]
[1749155090667,11.285,2480.9,2479.3,1.5981]
[1749155091355,1.5518,2480.8,2478.4,1.6468]
[1749155091665,0.55,2480.5,2478.4,1.6468]
[1749155091841,1.5675,2480.4,2477.7,1.76422985]
[1749155092017,1.5675,2480.2,2477.7,1.5534]
[1749155092218,1.5675,2480.2,2477.9,4.03556229]
[1749155092421,1.5675,2480.2,2477.7,17.5534]
[1749155092626,1.5675,2480.2,2477.9,4.03556713]
[1749155092956,1.5675,2480.2,2478.1,4.03528712]
[1749155093130,1.5675,2480.2,2478.5,4.034583]
[1749155093330,11.221,2480.1,2478.6,1.5534]
[1749155093538,11.221,2480.1,2478.2,0.40352871]
[1749155093937,1.5675,2480.0,2477.9,4.03565899]
[1749155094134,1.5675,2480.0,2477.9,0.55]
[1749155094355,1.5675,2480.0,2477.6,1.5534]
[1749155094869,1.6112,2479.8,2477.6,1.5534]
[1749155095179,1.6112,2479.6,2477.4,0.24465945]
[1749155095467,1.6149,2479.4,2477.4,0.24465945]
[1749155095827,16.0,2479.4,2477.4,0.24465945]
[1749155096059,1.6149,2479.3,2477.4,0.24465945]
[1749155096531,17.6149,2479.3,2477.4,0.24465945]
[1749155096732,1.6149,2479.3,2477.4,0.24465945]
[1749155096961,11.12,2479.2,2477.4,0.24465945]
[1749155097374,2.096,2479.0,2477.4,0.24465945]
[1749155097523,0.55,2478.8,2477.4,3.18e-06]
[1749155097730,1.546,2478.5,2475.9,1.6004]
[1749155098040,1.546,2478.5,2476.1,4.03846794]
[1749155098234,1.546,2478.5,2476.3,4.03828292]
[1749155098454,1.546,2478.5,2476.2,0.40384679]
[1749155098653,11.094,2478.4,2476.7,16.0]
[1749155098837,1.546,2478.5,2477.1,16.55]
[1749155099052,8.72,2479.0,2477.1,16.55]
[1749155099053,10.3565,2479.0,2477.2,4.03681575]
[1749155099352,8.72,2479.0,2478.4,4.03472766]
[1749155099661,11.077,2478.9,2478.0,0.55]
[1749155099826,11.077,2478.9,2478.3,0.55]
[1749155100026,11.077,2478.9,2477.8,16.0]
[1749155100275,11.054,2478.8,2478.4,4.03485783]
[1749155100429,11.054,2478.8,2478.5,0.40348578]
[1749155100824,11.038,2478.7,2478.2,16.0]
[1749155101054,11.038,2478.7,2477.3,0.45868157]
[1749155101370,11.038,2478.7,2477.3,4.49531051]
[1749155101371,1.5978,2478.6,2477.3,4.49531051]
[1749155101666,1.5978,2478.6,2477.4,4.03648986]
[1749155101832,1.5978,2478.6,2477.3,0.45868157]
[1749155102028,1.5978,2478.6,2477.4,4.64548098]
[1749155102029,11.014,2478.5,2477.4,4.64548098]
[1749155102273,11.014,2478.5,2477.4,0.60911822]
[1749155102481,1.6488,2478.3,2477.4,0.60911822]
[1749155102631,1.6488,2478.3,2475.8,0.21097836]
[1749155102632,0.55,2478.1,2475.8,0.21097836]
[1749155102839,0.55,2478.1,2475.1,1.5397]
[1749155102840,0.55,2477.9,2475.1,1.5397]
[1749155103342,0.55,2478.2,2475.1,1.5397]
[1749155103545,1.6488,2477.9,2475.1,17.5397]
[1749155103741,0.55,2477.8,2475.1,17.5397]
[1749155104054,1.6488,2477.7,2475.1,1.5397]
[1749155104260,1.6488,2477.7,2475.1,21.57984548]
[1749155104464,0.55,2477.4,2475.1,1.5397]
[1749155104770,16.0,2478.0,2474.6,1.5397]
[1749155104771,1.6488,2477.0,2474.6,1.5397]
[1749155104973,11.025,2476.9,2474.7,16.0]
[1749155105154,1.6488,2477.0,2475.1,16.0]
[1749155105155,11.021,2476.8,2475.1,16.0]
[1749155105340,11.021,2476.8,2474.6,1.5397]
[1749155105531,17.5996,2476.7,2474.6,1.5397]
[1749155105731,17.5996,2476.7,2474.6,17.5397]
[1749155105732,0.86601416,2476.6,2474.6,17.5397]
[1749155106159,0.86601416,2476.6,2474.6,1.5397]
[1749155106401,10.993,2476.5,2474.6,1.5397]
[1749155106702,1.601,2476.4,2474.6,1.5397]
[1749155106870,1.601,2476.4,2474.2,0.2924147]
[1749155106871,17.601,2476.4,2474.2,0.2924147]
[1749155107073,1.601,2476.1,2474.2,0.2924147]
[1749155107477,10.97,2476.0,2474.2,0.2924147]
[1749155107660,10.97,2476.0,2474.5,4.59119036]
[1749155107862,1.601,2476.1,2475.2,4.03997445]
[1749155108064,8.724,2477.3,2475.4,0.55]
[1749155108065,10.953,2476.0,2475.4,0.55]
[1749155108373,10.953,2476.0,2474.9,16.0]
[1749155108374,10.953,2475.9,2474.9,16.55]
[1749155108570,10.953,2475.8,2475.0,4.5902549]
[1749155108800,10.953,2475.8,2475.1,4.04010632]
[1749155108975,10.953,2475.8,2475.2,0.40401063]
[1749155109374,1.5281,2477.2,2475.3,16.0]
[1749155109575,1.5281,2477.2,2475.9,16.0]
[1749155109872,10.911,2477.1,2475.7,1.5714]
[1749155110385,1.5281,2477.2,2475.7,1.5714]
[1749155110386,1.5281,2477.2,2476.5,4.03786725]
[1749155110591,10.891,2477.1,2476.6,0.40378672]
[1749155110913,10.891,2477.1,2476.6,0.55]
[1749155111117,0.34576929,2478.4,2476.8,0.55]
[1749155111274,8.729,2479.1,2478.1,16.0]
[1749155111474,0.4040642,2481.1,2478.6,4.03451951]
[1749155111475,1.5476,2479.8,2478.6,4.03451951]
[1749155111689,1.5476,2479.8,2478.7,4.03436523]
[1749155111886,1.5476,2479.8,2478.7,0.55]
[1749155112212,1.5476,2479.8,2478.6,1.6586]
[1749155112364,8.729,2480.0,2478.7,10.43464205]
[1749155112562,8.729,2480.0,2478.8,21.07762205]
[1749155112761,1.5476,2480.3,2478.8,21.07762205]
[1749155112762,1.5476,2480.3,2479.2,16.0]
[1749155113009,10.851,2480.2,2479.1,0.55]
[1749155113322,10.851,2480.2,2479.0,1.6586]
[1749155113465,10.851,2480.2,2478.3,1.6586]
[1749155113670,1.5476,2479.9,2476.1,0.51568116]
[1749155113893,1.5476,2480.0,2475.8,0.19539374]
[1749155114231,1.5476,2478.6,2475.7,1.6586]
[1749155114409,1.5476,2478.3,2475.7,1.6586]
[1749155114711,1.5476,2478.3,2474.2,4.33403136]
[1749155114712,0.55,2477.6,2475.0,1.6586]
[1749155114883,1.5476,2477.6,2475.0,1.6586]
[1749155115082,1.5476,2477.3,2475.0,1.6586]
[1749155115283,1.5476,2477.1,2474.3,1.6586]
[1749155115498,1.5476,2476.8,2474.4,4.04138376]
[1749155115709,1.5476,2476.5,2474.3,1.6586]
[1749155115873,1.5476,2476.5,2474.2,0.2924147]
[1749155116073,1.5476,2476.1,2474.3,0.33738132]
[1749155116715,0.34779535,2476.2,2474.3,0.33738132]
[1749155116924,17.11590427,2476.4,2474.3,0.33738132]
[1749155116925,10.8,2476.1,2474.3,10.77202337]
[1749155117190,1.5476,2476.4,2474.8,1.6586]
[1749155117402,10.794,2476.0,2474.9,16.88729953]
[1749155117601,10.794,2476.0,2475.1,0.55]
[1749155117803,10.794,2476.0,2475.3,0.55]
[1749155118015,10.794,2476.0,2475.4,0.3372314]
[1749155118216,10.794,2476.0,2475.4,0.597424]
[1749155118669,10.794,2476.0,2473.5,0.84224286]
[1749155118670,10.794,2476.0,2474.3,1.6581]
[1749155118876,8.73,2476.2,2474.3,12.09274205]
[1749155119103,10.757,2476.1,2474.5,0.55]
[1749155119306,10.757,2476.1,2474.4,16.0]
[1749155119506,10.75,2476.0,2474.3,1.6581]
[1749155119911,1.5476,2476.4,2475.0,4.04029193]
[1749155120109,1.5476,2476.4,2475.2,0.55]
[1749155120307,10.744,2476.3,2474.5,0.55]
[1749155120510,10.735,2476.2,2475.1,0.55]
[1749155120715,1.5476,2476.4,2475.3,17.544]
[1749155121036,10.728,2476.1,2475.3,1.544]
[1749155121529,10.713,2476.0,2475.3,1.544]
[1749155121714,10.713,2476.0,2475.3,17.544]
[1749155121910,10.713,2476.0,2475.3,3.2984]
[1749155122211,10.713,2476.0,2474.7,1.544]
[1749155122412,10.713,2476.0,2474.9,4.04042371]
[1749155122578,10.713,2476.0,2475.0,0.55]
[1749155122775,10.713,2476.0,2475.0,4.5903829]
[1749155122973,10.713,2476.0,2475.2,0.55]
[1749155123175,1.5476,2476.4,2475.2,1.655]
[1749155123530,1.5423,2475.8,2473.5,0.84224286]
[1749155123734,1.5423,2475.8,2473.8,1.5134]
[1749155123879,1.5423,2475.8,2474.0,4.04193433]
[1749155124227,1.5423,2475.8,2474.1,4.04185812]
[1749155124714,0.33702513,2475.7,2474.4,4.04131512]
[1749155124924,0.33702513,2475.7,2474.6,0.55]
[1749155125380,0.33702513,2475.7,2475.2,10.43048057]
[1749155125580,0.29272513,2475.7,2475.6,20.58942478]
[1749155125804,10.2934,2477.4,2475.9,1.5972]
[1749155126006,10.74925357,2477.3,2476.3,0.55]
[1749155126281,10.74925357,2477.3,2474.4,6.85292312]
[1749155126489,17.5604,2476.2,2473.5,0.63101529]
[1749155126689,10.43048057,2475.9,2473.6,1.5972]
[1749155126922,8.733,2475.8,2473.6,1.5972]
[1749155127220,8.733,2475.8,2473.7,0.22282153]
[1749155127378,17.5884,2475.7,2473.7,0.22282153]
[1749155127573,17.5884,2475.7,2473.8,4.04225761]
[1749155127910,17.5884,2475.7,2473.7,4.26531883]
[1749155127911,10.639,2475.6,2474.2,4.04160057]
[1749155128111,10.639,2475.6,2473.7,0.22282153]
[1749155128316,12.73504,2475.6,2473.7,4.26521158]
[1749155128472,12.73504,2475.6,2473.7,0.22282153]
[1749155128675,1.6346,2475.3,2473.6,1.5972]
[1749155128882,1.6346,2474.9,2472.6,1.5285]
[1749155129183,1.6346,2474.4,2472.6,1.5285]
[1749155129384,19.352,2474.3,2472.6,1.5285]
[1749155130279,8.734,2474.3,2472.6,1.5285]
[1749155130478,10.588,2474.2,2472.6,1.5285]
[1749155130680,1.6583,2473.7,2471.8,1.5844]
[1749155131219,1.6583,2473.7,2473.1,0.10376918]
[1749155131220,16.0,2473.5,2473.1,0.10376918]
[1749155131424,17.6583,2473.1,2470.8,1.5844]
[1749155131722,1.6583,2472.9,2470.8,2.21713987]
[1749155132015,26.43048057,2472.7,2470.8,1.5844]
[1749155132224,1.6583,2472.5,2470.8,1.5844]
[1749155132408,10.43048057,2472.3,2470.7,0.2283793]
[1749155132579,8.736,2472.8,2471.0,1.5844]
[1749155132918,10.587,2472.7,2471.4,16.0]
[1749155133079,10.587,2472.7,2471.0,1.5844]
[1749155133279,1.9323,2472.6,2471.0,1.5844]
[1749155133479,8.736,2472.8,2471.0,1.5844]
[1749155133679,10.575,2472.7,2471.0,1.5844]
[1749155133909,10.43048057,2472.6,2471.0,1.5844]
[1749155134091,1.6517,2472.5,2470.7,0.86121027]
[1749155134290,1.6517,2472.5,2470.7,0.2283793]
[1749155134917,11.75321806,2472.4,2470.7,0.2283793]
[1749155135122,1.20821806,2472.4,2470.7,0.2283793]
[1749155135276,1.6517,2472.5,2470.7,0.2283793]
[1749155135277,10.536,2472.3,2470.7,0.2283793]
[1749155135682,1.6517,2472.5,2470.8,10.43048057]
[1749155135882,8.736,2472.8,2471.5,17.5554]
[1749155136077,8.736,2472.8,2471.6,10.43048057]
[1749155136321,2.21362904,2475.4,2471.6,10.43048057]
[1749155136322,10.525,2472.7,2472.3,0.55]
[1749155136494,8.739,2474.0,2472.6,1.5554]
[1749155136495,1.574,2473.6,2472.6,1.5554]
[1749155136699,10.519,2473.5,2472.6,1.5554]
[1749155137714,1.574,2473.6,2472.6,2.11539627]
[1749155137921,10.486,2473.5,2471.4,1.5699]
[1749155138243,10.486,2473.5,2470.3,0.21143167]
[1749155138244,16.0,2472.7,2471.0,2.0]
[1749155138442,1.5556,2472.2,2471.0,2.0]
[1749155138591,8.741,2472.1,2471.0,2.0]
[1749155138795,10.496,2472.0,2471.0,2.0]
[1749155138992,8.741,2472.1,2471.4,4.04615165]
[1749155139195,10.496,2471.9,2471.5,16.0]
[1749155139514,10.496,2471.9,2471.5,0.55]
[1749155139717,0.33455438,2471.8,2471.3,16.0]
[1749155139924,0.33455438,2471.8,2471.1,16.60469546]
[1749155140094,0.33455438,2471.8,2471.0,2.0]
[1749155140592,1.5556,2471.6,2471.0,2.0]
[1749155141330,0.33426337,2471.5,2471.0,2.0]
[1749155142359,0.33426337,2471.5,2471.0,1.41354711]
[1749155142360,10.43048057,2471.3,2471.0,1.41354711]
[1749155142547,0.33426337,2471.2,2471.0,1.41354711]
[1749155142714,10.443,2471.1,2471.0,1.23291052]
[1749155143045,0.33426337,2471.2,2471.0,1.23291052]
[1749155143192,10.441,2471.1,2471.0,1.23291052]
[1749155143395,0.33291139,2471.1,2471.0,1.23291052]
[1749155144159,0.33291139,2471.1,2471.0,21.82985507]
[1749155144440,8.741,2472.1,2471.4,4.5961805]
[1749155144644,10.424,2472.0,2471.4,4.5961805]
[1749155144792,10.424,2472.0,2471.4,16.0]
[1749155145729,10.424,2472.0,2471.0,1.23291052]
[1749155145934,8.741,2472.1,2471.0,1.23291052]
[1749155146104,10.382,2471.9,2471.0,1.23291052]
[1749155146299,10.382,2471.9,2471.0,17.23291052]
[1749155146496,1.6499,2471.8,2471.0,1.23291052]
[1749155147101,10.366,2471.7,2471.0,1.23291052]
[1749155147858,8.741,2472.1,2471.1,0.55]
[1749155148016,10.357,2472.0,2471.0,1.23291052]
[1749155148215,10.357,2472.0,2471.2,16.0]
[1749155148520,10.357,2472.0,2471.3,2.05966907]
[1749155148942,10.357,2472.0,2471.1,16.0]
[1749155149568,10.357,2472.0,2471.0,1.23291052]
[1749155149720,1.5987,2471.9,2471.0,1.23291052]
[1749155150330,10.325,2471.8,2471.0,1.23291052]
[1749155151003,1.5987,2471.5,2471.0,1.23291052]
[1749155151240,1.20291806,2471.4,2471.0,1.23291052]
[1749155151442,1.20291806,2471.4,2471.0,0.94900611]
[1749155151618,1.5987,2471.5,2471.0,0.94900611]
[1749155151619,10.297,2471.3,2471.0,0.87891354]
[1749155151816,20.72748057,2471.3,2471.0,0.87891354]
[1749155152042,1.5987,2471.5,2470.7,0.2283793]
[1749155152226,10.292,2471.4,2470.7,0.2283793]
[1749155152402,4.229,2471.3,2470.7,0.2283793]
[1749155152604,5.84097,2471.3,2470.7,0.2283793]
[1749155153006,10.43048057,2471.2,2470.7,0.2283793]
[1749155153246,1.5987,2471.1,2470.7,0.2283793]
[1749155153450,1.5987,2471.1,2469.1,2.23351559]
[1749155153607,17.5987,2470.5,2469.1,0.63321559]
[1749155153806,1.5987,2469.4,2468.2,0.2283793]
[1749155154106,14.488,2469.3,2468.2,0.2283793]
[1749155154306,1.5987,2469.4,2468.2,0.2283793]
[1749155154508,1.5987,2469.4,2467.9,0.6335976]
[1749155154509,14.481,2469.3,2468.1,16.0]
[1749155154734,14.481,2469.3,2468.4,16.0]
[1749155154915,10.25,2469.3,2468.7,4.05071495]
[1749155155245,12.977,2470.4,2468.9,0.55]
[1749155155430,10.241,2470.3,2468.8,16.0]
[1749155155630,10.241,2470.3,2468.9,4.05029824]
[1749155155941,8.747,2470.4,2468.9,0.55]
[1749155156128,10.228,2470.3,2469.0,1.655]
[1749155156660,10.228,2470.3,2468.6,1.54]
[1749155156661,10.228,2470.3,2468.6,17.54]
[1749155156814,26.228,2470.3,2468.6,1.54]
[1749155157428,8.747,2470.4,2468.6,1.54]
[1749155157710,1.56,2470.2,2468.4,16.0]
[1749155158013,14.445,2470.1,2468.7,4.05063397]
[1749155158211,14.445,2470.1,2468.8,0.4050634]
[1749155158426,14.445,2470.1,2468.6,4.05084551]
[1749155159036,14.445,2470.1,2468.2,1.514]
[1749155159216,14.445,2470.1,2468.5,16.0]
[1749155159437,1.56,2470.2,2468.3,0.55]
[1749155159635,10.215,2470.3,2469.7,2.1401]
[1749155160015,10.215,2470.3,2469.7,1.5901]
[1749155160450,1.5685,2471.1,2469.8,0.55]
[1749155160659,5.7995,2471.1,2470.0,0.55]
[1749155160828,4.231,2471.7,2470.3,1.5901]
[1749155161146,4.231,2471.7,2470.5,0.55]
[1749155161348,4.231,2471.7,2471.1,0.55]
[1749155161550,1.11956689,2473.2,2471.2,1.5901]
[1749155161551,1.5685,2472.6,2471.2,1.5901]
[1749155161720,4.231,2472.7,2471.2,1.5901]
[1749155161721,0.23179142,2472.5,2471.5,0.55]
[1749155162052,10.215,2472.4,2471.7,4.59568075]
[1749155162256,10.215,2472.4,2471.2,5.63668281]
[1749155162257,10.215,2472.3,2471.2,1.5901]
[1749155162495,10.215,2472.3,2471.3,0.55]
[1749155163381,10.215,2472.3,2471.3,16.55]
[1749155163581,1.6419,2472.2,2470.5,0.55]
[1749155163793,1.6419,2472.2,2471.2,0.55]
[1749155164098,10.213,2472.1,2471.1,4.59674829]
[1749155164391,10.213,2472.1,2471.2,4.04658181]
[1749155164595,5.8729,2472.6,2471.2,1.6081]
[1749155164798,10.213,2472.5,2471.3,1.25885806]
[1749155164998,20.64348057,2472.5,2470.7,1.6081]
[1749155165195,20.64348057,2472.5,2470.0,1.6081]
[1749155165196,1.6419,2472.3,2470.0,1.6081]
[1749155165622,1.99267144,2472.3,2470.5,4.04776361]
[1749155165823,4.231,2472.7,2471.4,0.55]
[1749155165965,10.213,2472.6,2471.7,16.55]
[1749155166175,10.213,2472.6,2471.8,1.655]
[1749155166577,4.231,2472.7,2471.8,1.655]
[1749155166815,10.212,2472.6,2471.1,0.55]
[1749155166999,10.212,2472.6,2471.3,0.55]
[1749155167317,1.6419,2472.8,2471.8,20.59563405]
[1749155167615,10.21,2472.7,2471.8,16.55]
[1749155167819,4.23,2472.9,2471.9,0.55]
[1749155168015,1.5026,2474.0,2472.7,0.55]
[1749155168488,4.23,2474.4,2473.1,0.55]
[1749155168690,10.21,2474.3,2472.6,1.6383]